Department Family,Entity,Date,Expense Type,Expense Area,Supplier,Transaction Number,AP Amount,VAT Registration Number,Purchase Invoice Number
Department of Health,Bridgewater Community Healthcare NHS Foundation Trust,2/28/2015,Lease Rents,Trust Headquarters - ALW,SHARMA INVESTMENTS LTD,12283796,"39,750.00",,BE17081215
Department of Health,Bridgewater Community Healthcare NHS Foundation Trust,2/28/2015,Contr Other External,Corporate Finance - ALW,NHS SHARED BUSINESS SERVICES LTD,12298986,"34,642.00",848137212,100027089
Department of Health,Bridgewater Community Healthcare NHS Foundation Trust,2/28/2015,"Books, Journals & Subscr",Healthcare Libraries Unit - ALW,WILEY SUBSCRIPTION SERVICES INC,12301317,"54,392.02",654937107,2160467
Department of Health,Bridgewater Community Healthcare NHS Foundation Trust,2/28/2015,OOH Comms Equip/GP Rotas,General Medical Services,DR JK AGARWALA,12339679,"61,361.43",,JAN15 2932
Department of Health,Bridgewater Community Healthcare NHS Foundation Trust,2/28/2015,SrvcsRecd-FoundationTrust,Comm Dental Bolton,ROYAL BOLTON HOSPITAL NHS FOUNDATION TRUST,12363247,"63,460.00",654913421,1023664
Department of Health,Bridgewater Community Healthcare NHS Foundation Trust,2/28/2015,SrvcsRecd-FoundationTrust,Sexual Health Trafford,UNIVERSITY HOSPITAL OF SOUTH MANCHESTER NHS FOUNDATION TRUST,12382945,"32,850.66",654941709,314857
Department of Health,Bridgewater Community Healthcare NHS Foundation Trust,2/28/2015,Other Clinical Costs,Out of Hours Medical Services,CO-OPERATIVE PHARMACY,12420504,"28,325.00",,MI00001666
Department of Health,Bridgewater Community Healthcare NHS Foundation Trust,2/28/2015,Legal / Prof Fees,Chief Executive - ALW,KPMG LLP,12420550,"31,402.80",791788859,5500942989
Department of Health,Bridgewater Community Healthcare NHS Foundation Trust,2/28/2015,Vehicle Insurance,Corporate Finance - ALW,GMG RISK STRATEGIES LTD,12421233,"25,466.00",,3068
Department of Health,Bridgewater Community Healthcare NHS Foundation Trust,2/28/2015,Vehicle Insurance,Corporate Finance - ALW,GMG RISK STRATEGIES LTD,12421234,"37,472.06",,3070
Department of Health,Bridgewater Community Healthcare NHS Foundation Trust,2/28/2015,Rent,Fingerpost Health Park,NHS PROPERTY SERVICES LTD,12514803,"104,252.95",156725100,48334932
Department of Health,Bridgewater Community Healthcare NHS Foundation Trust,2/28/2015,Lease Rents,Estates Management,COMMUNITY HEALTH PARTNERSHIPS,12514812,"989,473.49",782562113,50370771
Department of Health,Bridgewater Community Healthcare NHS Foundation Trust,2/28/2015,Hlthcre-Foundation Trsts,Physio Adults Halton,WARRINGTON & HALTON HOSPITALS NHS FOUNDATION TRUST,12514881,"56,828.00",654404741,15351232
Department of Health,Bridgewater Community Healthcare NHS Foundation Trust,2/28/2015,Hlthcre-Foundation Trsts,Sexual Health,WARRINGTON & HALTON HOSPITALS NHS FOUNDATION TRUST,12514891,"62,202.00",654404741,15351274
Department of Health,Bridgewater Community Healthcare NHS Foundation Trust,2/28/2015,SrvcsRecd-FoundationTrust,Newton Hospital Inpat,WARRINGTON & HALTON HOSPITALS NHS FOUNDATION TRUST,12514976,"67,338.00",654404741,15351377
Department of Health,Bridgewater Community Healthcare NHS Foundation Trust,2/28/2015,Hlthcre-Foundation Trsts,Sexual Health,WARRINGTON & HALTON HOSPITALS NHS FOUNDATION TRUST,12515041,"62,202.00",654404741,15351612
Department of Health,Bridgewater Community Healthcare NHS Foundation Trust,2/28/2015,Vehicle Insurance,Corporate Finance - ALW,GMG RISK STRATEGIES LTD,12516455,"105,449.86",,3071
Department of Health,Bridgewater Community Healthcare NHS Foundation Trust,2/28/2015,Lease Rents,Trust Headquarters - ALW,SHARMA INVESTMENTS LTD,12601734,"39,750.00",,BE17160215
Department of Health,Bridgewater Community Healthcare NHS Foundation Trust,2/28/2015,Grants,Healthcare Libraries Unit - ALW,NORTH CUMBRIA UNIVERSITY HOSPITALS NHS TRUST,12602380,"25,000.00",654914810,2010005810
Department of Health,Bridgewater Community Healthcare NHS Foundation Trust,2/28/2015,Lease Rents,Estates Management,COMMUNITY HEALTH PARTNERSHIPS,12635060,"989,473.49",782562113,50371797
Department of Health,Bridgewater Community Healthcare NHS Foundation Trust,2/28/2015,Lease Rents,Estates Management,COMMUNITY HEALTH PARTNERSHIPS,12635240,"52,502.36",782562113,50373364
Department of Health,Bridgewater Community Healthcare NHS Foundation Trust,2/28/2015,Lease Rents,Estates Management,COMMUNITY HEALTH PARTNERSHIPS,12635253,"141,069.70",782562113,50373369
Department of Health,Bridgewater Community Healthcare NHS Foundation Trust,2/28/2015,Rent,Platt Bridge Community HC,COMMUNITY HEALTH PARTNERSHIPS,12635270,"130,125.56",782562113,50373371
Department of Health,Bridgewater Community Healthcare NHS Foundation Trust,2/28/2015,Lease Rents,Estates Management,COMMUNITY HEALTH PARTNERSHIPS,12635286,"96,511.60",782562113,50373375
Department of Health,Bridgewater Community Healthcare NHS Foundation Trust,2/28/2015,Lease Rents,Estates Management,COMMUNITY HEALTH PARTNERSHIPS,12635299,"303,065.10",782562113,50373831
Department of Health,Bridgewater Community Healthcare NHS Foundation Trust,2/28/2015,Lease Rents,Estates Management,COMMUNITY HEALTH PARTNERSHIPS,12635313,"59,075.10",782562113,50373836
Department of Health,Bridgewater Community Healthcare NHS Foundation Trust,2/28/2015,Lease Rents,Estates Management,COMMUNITY HEALTH PARTNERSHIPS,12635327,"103,077.92",782562113,50373852
Department of Health,Bridgewater Community Healthcare NHS Foundation Trust,2/28/2015,Lease Rents,Estates Management,COMMUNITY HEALTH PARTNERSHIPS,12635340,"32,560.18",782562113,50373855
Department of Health,Bridgewater Community Healthcare NHS Foundation Trust,2/28/2015,Lease Rents,Estates Management,COMMUNITY HEALTH PARTNERSHIPS,12635354,"51,706.50",782562113,50373861
Department of Health,Bridgewater Community Healthcare NHS Foundation Trust,2/28/2015,Lease Rents,Estates Management,COMMUNITY HEALTH PARTNERSHIPS,12635368,"76,868.40",782562113,50373865
Department of Health,Bridgewater Community Healthcare NHS Foundation Trust,2/28/2015,Services Received - NHSTs,Minor Injury Unit StH,ST HELENS & KNOWSLEY HOSPITALS NHS TRUST,12635415,"26,414.25",654943996,16753565
